[Event "Caplin Hastings Masters 2023-24"]
[Site "Hastings"]
[Date "2024.01.02"]
[Round "6.44"]
[White "Patel, Zain"]
[Black "Butt, Laurence"]
[Result "0-1"]
[ECO "C50"]
[WhiteElo "1841"]
[BlackElo "1688"]
[Annotator "NA RC"]
[PlyCount "98"]
[EventDate "2023.12.18"]
[EventType "swiss"]
[EventCountry "ENG"]
[SourceTitle "playchess.com"]
[Source "ChessBase"]
[SourceQuality "1"]
[TimeControl "40/6000+30:3000+30"]

1. e4 {[%emt 0:00:14]} Nc6 {[%emt 0:04:20]} 2. Nf3 {[%emt 0:00:29]} e5 {[%emt 0:00:59]} 3. d4 {[%emt 0:03:20]} exd4 {[%emt 0:01:52]} 4. Bc4 {[%emt 0:01:08]} Qe7 {[%emt 0:00:59]} 5. O-O {[%emt 0:01:02]} d6 {[%emt 0:02:12]} 6. Nxd4 {[%emt 0:03:25]} Nxd4 {[%emt 0:00:23]} 7. Qxd4 {[%emt 0:00:10]} Be6 {[%emt 0:00:07]} 8. Nc3 {[%emt 0:05:08]} Bxc4 {[%emt 0:04:24]} 9. Qxc4 {[%emt 0:00:08]} c6 {[%emt 0:00:09]} 10. Bf4 {[%emt 0:02:36]} g5 {[%emt 0:01:50]} 11. Bg3 {[%emt 0:05:46]} h5 {[%emt 0:02:05]} 12. Qd4 {[%emt 0:05:13]} Rh6 {[%emt 0:01:38]} 13. f4 {[%emt 0:12:29]} g4 {[%emt 0:02:50]} 14. f5 {[%emt 0:02:23]} Qd7 {[%emt 0:08:14]} 15. e5 {[%emt 0:07:47]} d5 {[%emt 0:07:01]} 16. Bf4 {[%emt 0:16:46]} Rh7 {[%emt 0:00:43]} 17. e6 {[%emt 0:01:37]} Qd8 {[%emt 0:08:33]} 18. exf7+ {[%emt 0:02:45]} Kxf7 {[%emt 0:01:13]} 19. Qe5 {[%emt 0:02:05]} Bc5+ {[%emt 0:04:18]} 20. Be3 {[%emt 0:06:21]} Bxe3+ {[%emt 0:00:30]} 21. Qxe3 {[%emt 0:00:06]} Qb6 {[%emt 0:00:06]} 22. Qxb6 {[%emt 0:01:29]} axb6 {[%emt 0:00:05]} 23. Ne2 {[%emt 0:03:48]} Kf6 {[%emt 0:00:43]} 24. Nd4 {[%emt 0:00:56]} Re7 {[%emt 0:03:11]} 25. a3 {[%emt 0:06:01]} Re4 {[%emt 0:02:15]} 26. Ne6 {[%emt 0:03:08]} Nh6 {[%emt 0:01:00]} 27. Nf4 {[%emt 0:01:19]} h4 {[%emt 0:05:17]} 28. Nh5+ {[%emt 0:03:46]} Kf7 {[%emt 0:10:05]} 29. f6 {[%emt 0:03:10]} Rae8 {[%emt 0:00:50]} 30. a4 {[%emt 0:02:54]} Re2 {[%emt 0:02:21]} 31. Rf2 {[%emt 0:01:15]} Rxf2 {[%emt 0:00:43]} 32. Kxf2 {[%emt 0:00:03]} Re5 {[%emt 0:00:38]} 33. Nf4 {[%emt 0:00:18]} Kxf6 {[%emt 0:00:23]} 34. a5 {[%emt 0:00:45]} bxa5 {[%emt 0:00:11]} 35. Rxa5 {[%emt 0:00:04]} Re4 {[%emt 0:03:42]} 36. Nd3 {[%emt 0:01:00]} Re7 {[%emt 0:03:19]} 37. Ra8 {[%emt 0:02:54]} Kg7 {[%emt 0:03:11]} 38. Rb8 {[%emt 0:00:45]} Nf5 {[%emt 0:00:18]} 39. Nc5 {[%emt 0:01:07]} Nd6 {[%emt 0:01:30]} 40. Rd8 {[%emt 0:01:39]} Nc4 {[%emt 0:11:26]} 41. Nd3 {[%emt 0:12:05]} Ne3 {[%emt 0:05:01]} 42. c3 {[%emt 0:00:45]} Nf5 {[%emt 0:00:23]} 43. Nf4 {[%emt 0:05:01]} Re4 {[%emt 0:09:53]} 44. g3 {[%emt 0:05:55]} hxg3+ {[%emt 0:00:57]} 45. hxg3 {[%emt 0:00:11]} Re3 {[%emt 0:04:11]} 46. Rd7+ {[%emt 0:02:52]} Kf6 {[%emt 0:03:01]} 47. Rd6+ {[%emt 0:08:31]} Ke7 {[%emt 0:04:18]} 48. Rxd5 {[%emt 0:02:18]} Rf3+ {[%emt 0:00:20]} 49. Ke1 {[%emt 0:00:26]} cxd5 {[%emt 0:00:14]} 0-1

[Event "Caplin Hastings Masters 2023-24"]
[Site "Hastings"]
[Date "2024.01.02"]
[Round "6.45"]
[White "Binks, Michael"]
[Black "Prudent, Sylvio"]
[Result "1-0"]
[ECO "A90"]
[WhiteElo "2035"]
[BlackElo "1639"]
[Annotator "NA RC"]
[PlyCount "97"]
[EventDate "2023.12.18"]
[EventType "swiss"]
[EventCountry "ENG"]
[SourceTitle "playchess.com"]
[Source "ChessBase"]
[SourceQuality "1"]
[TimeControl "40/6000+30:3000+30"]

1. d4 {[%emt 0:00:14]} f5 {[%emt 0:00:10]} 2. g3 {[%emt 0:00:36]} e6 {[%emt 0:00:12]} 3. Bg2 {[%emt 0:00:10]} Nf6 {[%emt 0:00:10]} 4. c4 {[%emt 0:01:34]} d5 {[%emt 0:00:32]} 5. Nc3 {[%emt 0:00:57]} c6 {[%emt 0:00:08]} 6. Qb3 {[%emt 0:01:25]} Bd6 {[%emt 0:00:44]} 7. Nh3 {[%emt 0:02:29]} O-O {[%emt 0:01:29]} 8. Bf4 {[%emt 0:00:09]} Bc7 {[%emt 0:03:37]} 9. Rc1 {[%emt 0:04:15]} Ne4 {[%emt 0:01:10]} 10. Bxc7 {[%emt 0:06:50]} Qxc7 {[%emt 0:00:40]} 11. cxd5 {[%emt 0:00:13]} cxd5 {[%emt 0:04:16]} 12. Bxe4 {[%emt 0:07:17]} fxe4 {[%emt 0:01:45]} 13. O-O {[%emt 0:00:22]} Nc6 {[%emt 0:00:40]} 14. e3 {[%emt 0:01:16]} h6 {[%emt 0:00:58]} 15. Nf4 {[%emt 0:02:58]} Qf7 {[%emt 0:02:29]} 16. f3 {[%emt 0:06:28]} exf3 {[%emt 0:02:39]} 17. Rxf3 {[%emt 0:00:15]} e5 {[%emt 0:44:59]} 18. dxe5 {[%emt 0:21:57]} Nxe5 {[%emt 0:01:18]} 19. Rff1 {[%emt 0:00:11]} Bg4 {[%emt 0:03:22]} 20. Ncxd5 {[%emt 0:03:47]} Nc6 {[%emt 0:17:18]} 21. Ng6 {[%emt 0:06:33]} Qe6 {[%emt 0:07:28]} 22. Rxf8+ {[%emt 0:01:45]} Rxf8 {[%emt 0:00:07]} 23. Nxf8 {[%emt 0:00:20]} Kxf8 {[%emt 0:00:52]} 24. Rf1+ {[%emt 0:08:44]} Kg8 {[%emt 0:02:32]} 25. Rf4 {[%emt 0:01:38]} Kh7 {[%emt 0:01:30]} 26. Qd3+ {[%emt 0:02:58]} Kg8 {[%emt 0:00:31]} 27. Nc7 {[%emt 0:03:52]} Qc8 {[%emt 0:01:40]} 28. Nb5 {[%emt 0:09:14]} Be6 {[%emt 0:02:23]} 29. b3 {[%emt 0:03:28]} a6 {[%emt 0:01:43]} 30. Nd4 {[%emt 0:04:51]} Nb4 {[%emt 0:02:39]} 31. Qd2 {[%emt 0:02:44]} Bh3 {[%emt 0:01:26]} 32. a3 {[%emt 0:03:15]} Nd5 {[%emt 0:00:46]} 33. Rh4 {[%emt 0:00:46]} Ne7 {[%emt 0:02:50]} 34. Nf3 {[%emt 0:01:48]} Bg4 {[%emt 0:01:39]} 35. Ne5 {[%emt 0:00:47]} Bh3 {[%emt 0:00:21]} 36. Rc4 {[%emt 0:00:45]} Qf8 {[%emt 0:00:24]} 37. Qf2 {[%emt 0:00:19]} Qd8 {[%emt 0:00:41]} 38. Qf7+ {[%emt 0:00:49]} Kh7 {[%emt 0:00:13]} 39. Rd4 {[%emt 0:00:13]} Qc7 {[%emt 0:00:34]} 40. Nc4 {[%emt 0:00:34]} Qc5 {[%emt 0:00:26]} 41. Re4 {[%emt 0:03:00]} Ng8 {[%emt 0:04:15]} 42. Re8 {[%emt 0:01:08]} Nf6 {[%emt 0:00:37]} 43. Re7 {[%emt 0:00:35]} Nh5 {[%emt 0:00:38]} 44. Re5 {[%emt 0:00:20]} Qc6 {[%emt 0:00:51]} 45. Qd5 {[%emt 0:13:03]} Qf6 {[%emt 0:05:37]} 46. Nd2 {[%emt 0:00:07]} b5 {[%emt 0:02:05]} 47. Rxh5 {[%emt 0:00:27]} Qa1+ {[%emt 0:00:40]} 48. Kf2 {[%emt 0:00:08]} Qf6+ {[%emt 0:00:20]} 49. Qf3 {[%emt 0:00:26]} 1-0

[Event "Caplin Hastings Masters 2023-24"]
[Site "Hastings"]
[Date "2024.01.02"]
[Round "6.46"]
[White "Metcalfe, Charlie P"]
[Black "Keely, Leo A"]
[Result "1/2-1/2"]
[ECO "A86"]
[WhiteElo "1760"]
[BlackElo "1908"]
[Annotator "NA RC"]
[PlyCount "72"]
[EventDate "2023.12.18"]
[EventType "swiss"]
[EventCountry "ENG"]
[SourceTitle "playchess.com"]
[Source "ChessBase"]
[SourceQuality "1"]
[TimeControl "40/6000+30:3000+30"]

1. d4 {[%emt 0:00:44]} f5 {[%emt 0:00:10]} 2. g3 {[%emt 0:00:02]} Nf6 {[%emt 0:00:17]} 3. Bg2 {[%emt 0:00:03]} g6 {[%emt 0:00:18]} 4. c4 {[%emt 0:00:05]} Bg7 {[%emt 0:00:23]} 5. Nc3 {[%emt 0:00:12]} d6 {[%emt 0:00:32]} 6. Nh3 {[%emt 0:01:23]} O-O {[%emt 0:01:39]} 7. d5 {[%emt 0:00:02]} a5 {[%emt 0:14:16]} 8. O-O {[%emt 0:03:47]} Na6 {[%emt 0:02:17]} 9. Be3 {[%emt 0:05:19]} Bd7 {[%emt 0:06:55]} 10. Nf4 {[%emt 0:05:11]} c6 {[%emt 0:03:07]} 11. Na4 {[%emt 0:22:35]} c5 {[%emt 0:12:25]} 12. Qb3 {[%emt 0:00:37]} Bxa4 {[%emt 0:01:45]} 13. Qxa4 {[%emt 0:00:03]} Qd7 {[%emt 0:00:31]} 14. Qxd7 {[%emt 0:02:19]} Nxd7 {[%emt 0:00:07]} 15. Ne6 {[%emt 0:00:09]} Rfb8 {[%emt 0:02:10]} 16. Nxg7 {[%emt 0:01:01]} Kxg7 {[%emt 0:00:09]} 17. a4 {[%emt 0:05:40]} Rf8 {[%emt 0:05:46]} 18. Bd2 {[%emt 0:12:30]} Nb4 {[%emt 0:02:28]} 19. Rad1 {[%emt 0:11:34]} Kg8 {[%emt 0:02:21]} 20. b3 {[%emt 0:04:36]} Rf7 {[%emt 0:05:47]} 21. e4 {[%emt 0:02:25]} Raf8 {[%emt 0:08:59]} 22. exf5 {[%emt 0:00:40]} gxf5 {[%emt 0:00:12]} 23. Bf3 {[%emt 0:04:36]} Nf6 {[%emt 0:03:12]} 24. Bh6 {[%emt 0:03:38]} Rc8 {[%emt 0:01:25]} 25. Rfe1 {[%emt 0:00:37]} Nc2 {[%emt 0:01:16]} 26. Rf1 {[%emt 0:02:16]} Nd4 {[%emt 0:05:06]} 27. Bg2 {[%emt 0:03:04]} Ng4 {[%emt 0:00:48]} 28. Bg5 {[%emt 0:00:54]} Rc7 {[%emt 0:01:14]} 29. Rb1 {[%emt 0:05:00]} Ne5 {[%emt 0:07:16]} 30. f4 {[%emt 0:00:45]} Nd3 {[%emt 0:03:08]} 31. Rbd1 {[%emt 0:03:01]} Nb4 {[%emt 0:00:45]} 32. Rb1 {[%emt 0:00:29]} Kg7 {[%emt 0:00:25]} 33. Kf2 {[%emt 0:01:33]} Kg6 {[%emt 0:00:36]} 34. Rfd1 {[%emt 0:02:36]} Rc8 {[%emt 0:08:28]} 35. Rd2 {[%emt 0:01:01]} Ra8 {[%emt 0:01:15]} 36. Kf1 {[%emt 0:02:18]} Rc8 {[%emt 0:02:51]} 1/2-1/2

[Event "Caplin Hastings Masters 2023-24"]
[Site "Hastings"]
[Date "2024.01.02"]
[Round "6.47"]
[White "Han, Qixuan"]
[Black "Byrn, Carsten"]
[Result "0-1"]
[ECO "A11"]
[WhiteElo "1603"]
[BlackElo "1823"]
[Annotator "NA RC"]
[PlyCount "86"]
[EventDate "2023.12.18"]
[EventType "swiss"]
[EventCountry "ENG"]
[SourceTitle "playchess.com"]
[Source "ChessBase"]
[SourceQuality "1"]
[TimeControl "40/6000+30:3000+30"]

1. b3 {[%emt 0:00:02]} Nf6 {[%emt 0:00:27]} 2. Bb2 {[%emt 0:00:07]} d5 {[%emt 0:00:25]} 3. Nf3 {[%emt 0:00:08]} g6 {[%emt 0:00:12]} 4. g3 {[%emt 0:00:13]} Bg7 {[%emt 0:00:09]} 5. Bg2 {[%emt 0:00:05]} O-O {[%emt 0:00:21]} 6. c4 {[%emt 0:00:13]} c6 {[%emt 0:00:47]} 7. O-O {[%emt 0:00:12]} a5 {[%emt 0:00:26]} 8. Nc3 {[%emt 0:00:14]} Nbd7 {[%emt 0:04:24]} 9. d4 {[%emt 0:02:17]} Nb6 {[%emt 0:03:48]} 10. cxd5 {[%emt 0:01:33]} Nbxd5 {[%emt 0:00:43]} 11. Nxd5 {[%emt 0:01:41]} Nxd5 {[%emt 0:01:42]} 12. Re1 {[%emt 0:02:19]} a4 {[%emt 0:06:15]} 13. e3 {[%emt 0:02:53]} a3 {[%emt 0:05:55]} 14. Bc1 {[%emt 0:00:31]} Nc3 {[%emt 0:00:21]} 15. Qc2 {[%emt 0:00:40]} Nb5 {[%emt 0:00:24]} 16. Nh4 {[%emt 0:01:59]} e5 {[%emt 0:05:55]} 17. dxe5 {[%emt 0:18:18]} Bxe5 {[%emt 0:02:34]} 18. Bd2 {[%emt 0:01:54]} Bxa1 {[%emt 0:01:14]} 19. Rxa1 {[%emt 0:01:57]} Qf6 {[%emt 0:00:40]} 20. Rb1 {[%emt 0:01:23]} Re8 {[%emt 0:03:26]} 21. e4 {[%emt 0:01:38]} g5 {[%emt 0:03:19]} 22. Nf3 {[%emt 0:02:32]} h6 {[%emt 0:00:26]} 23. Ne1 {[%emt 0:01:54]} Bg4 {[%emt 0:04:44]} 24. f4 {[%emt 0:07:47]} Qd4+ {[%emt 0:11:07]} 25. Kh1 {[%emt 0:01:15]} Rad8 {[%emt 0:01:08]} 26. Bc1 {[%emt 0:01:38]} Bd1 {[%emt 0:05:51]} 27. Qc4 {[%emt 0:01:13]} Qf2 {[%emt 0:03:39]} 28. Nd3 {[%emt 0:06:10]} Qxa2 {[%emt 0:01:49]} 29. Ne5 {[%emt 0:03:29]} Rxe5 {[%emt 0:01:29]} 30. fxe5 {[%emt 0:00:14]} Qxb1 {[%emt 0:01:05]} 31. e6 {[%emt 0:00:20]} Bh5 {[%emt 0:07:25]} 32. e7 {[%emt 0:01:10]} Re8 {[%emt 0:00:00]} 33. g4 {[%emt 0:00:48]} Bg6 {[%emt 0:00:17]} 34. h4 {[%emt 0:00:42]} Rxe7 {[%emt 0:00:53]} 35. h5 {[%emt 0:00:13]} Bxe4 {[%emt 0:00:33]} 36. Bxe4 {[%emt 0:00:08]} Rxe4 {[%emt 0:00:23]} 37. Qxe4 {[%emt 0:00:07]} Qxe4+ {[%emt 0:00:21]} 38. Kh2 {[%emt 0:00:12]} Qc2+ {[%emt 0:00:33]} 39. Kg3 {[%emt 0:00:08]} Qxc1 {[%emt 0:00:12]} 40. b4 {[%emt 0:00:04]} Qe3+ {[%emt 0:00:39]} 41. Kh2 {[%emt 0:50:06]} a2 {[%emt 0:50:15]} 42. Kg2 {[%emt 0:00:06]} a1=Q {[%emt 0:00:41]} 43. Kh2 {[%emt 0:00:04]} Qag1# {[%emt 0:01:44]} 0-1

[Event "Caplin Hastings Masters 2023-24"]
[Site "Hastings"]
[Date "2024.01.02"]
[Round "6.48"]
[White "Kim, Sumin"]
[Black "Wilson, Matthew R"]
[Result "0-1"]
[ECO "D36"]
[WhiteElo "1358"]
[BlackElo "1771"]
[Annotator "NA RC"]
[PlyCount "102"]
[EventDate "2023.12.18"]
[EventType "swiss"]
[EventCountry "ENG"]
[SourceTitle "playchess.com"]
[Source "ChessBase"]
[SourceQuality "1"]
[TimeControl "40/6000+30:3000+30"]

1. d4 {[%emt 0:00:30]} d5 {[%emt 0:00:00]} 2. c4 {[%emt 0:00:22]} e6 {[%emt 0:00:00]} 3. Nc3 {[%emt 0:00:05]} Nf6 {[%emt 0:00:00]} 4. cxd5 {[%emt 0:00:04]} exd5 {[%emt 0:00:00]} 5. Bg5 {[%emt 0:00:05]} c6 {[%emt 0:00:11]} 6. e3 {[%emt 0:00:15]} Be7 {[%emt 0:00:15]} 7. Bd3 {[%emt 0:00:28]} h6 {[%emt 0:00:20]} 8. Bh4 {[%emt 0:00:28]} Nbd7 {[%emt 0:00:26]} 9. Qc2 {[%emt 0:01:14]} Nh5 {[%emt 0:00:08]} 10. Bxe7 {[%emt 0:01:30]} Qxe7 {[%emt 0:00:08]} 11. Nf3 {[%emt 0:02:26]} Nf4 {[%emt 0:02:55]} 12. O-O {[%emt 0:02:33]} Nxd3 {[%emt 0:00:22]} 13. Qxd3 {[%emt 0:00:09]} Nf6 {[%emt 0:01:25]} 14. Ne5 {[%emt 0:01:20]} O-O {[%emt 0:00:39]} 15. Rab1 {[%emt 0:00:18]} a5 {[%emt 0:18:00]} 16. Qc2 {[%emt 0:16:49]} Bd7 {[%emt 0:09:30]} 17. a3 {[%emt 0:02:50]} Qd6 {[%emt 0:09:04]} 18. b4 {[%emt 0:01:44]} axb4 {[%emt 0:00:10]} 19. axb4 {[%emt 0:00:16]} Ng4 {[%emt 0:02:16]} 20. Nxg4 {[%emt 0:02:27]} Bxg4 {[%emt 0:00:08]} 21. f3 {[%emt 0:05:50]} Bh5 {[%emt 0:00:59]} 22. Qd2 {[%emt 0:00:20]} Rfd8 {[%emt 0:05:32]} 23. Rfc1 {[%emt 0:01:26]} Bg6 {[%emt 0:00:20]} 24. Rb3 {[%emt 0:01:46]} Ra7 {[%emt 0:06:04]} 25. b5 {[%emt 0:03:31]} Rda8 {[%emt 0:01:19]} 26. e4 {[%emt 0:02:21]} dxe4 {[%emt 0:01:23]} 27. fxe4 {[%emt 0:00:14]} Ra3 {[%emt 0:12:41]} 28. e5 {[%emt 0:08:05]} Qd8 {[%emt 0:05:29]} 29. Rxa3 {[%emt 0:02:35]} Rxa3 {[%emt 0:00:12]} 30. bxc6 {[%emt 0:00:30]} bxc6 {[%emt 0:00:35]} 31. Qf4 {[%emt 0:01:47]} Qa5 {[%emt 0:08:05]} 32. Ne4 {[%emt 0:01:16]} Bxe4 {[%emt 0:01:24]} 33. Qxe4 {[%emt 0:00:09]} Qd2 {[%emt 0:00:49]} 34. Re1 {[%emt 0:06:26]} Ra2 {[%emt 0:22:31]} 35. Rb1 {[%emt 0:00:43]} Rb2 {[%emt 0:00:53]} 36. Ra1 {[%emt 0:01:11]} Ra2 {[%emt 0:01:11]} 37. Rxa2 {[%emt 0:00:47]} Qxa2 {[%emt 0:00:09]} 38. Kf1 {[%emt 0:00:26]} Qc4+ {[%emt 0:02:18]} 39. Kf2 {[%emt 0:00:32]} c5 {[%emt 0:01:05]} 40. Qa8+ {[%emt 0:02:01]} Kh7 {[%emt 0:00:09]} 41. Qe4+ {[%emt 0:50:47]} g6 {[%emt 0:03:56]} 42. Ke3 {[%emt 0:00:00]} Qc3+ {[%emt 0:01:06]} 43. Qd3 {[%emt 0:00:00]} cxd4+ {[%emt 0:07:21]} 44. Ke4 {[%emt 0:00:00]} Qc6+ {[%emt 0:00:33]} 45. Kxd4 {[%emt 0:00:00]} Qxg2 {[%emt 0:00:15]} 46. h3 {[%emt 0:00:00]} Qf2+ {[%emt 0:01:05]} 47. Kd5 {[%emt 0:00:00]} Qf5 {[%emt 0:07:02]} 48. Qe3 {[%emt 0:00:00]} g5 {[%emt 0:02:20]} 49. Qe4 {[%emt 0:00:00]} Qxe4+ {[%emt 0:01:56]} 50. Kxe4 {[%emt 0:00:00]} Kg6 {[%emt 0:00:06]} 51. Kf3 {[%emt 0:00:00]} Kf5 {[%emt 0:00:52]} 0-1

[Event "Caplin Hastings Masters 2023-24"]
[Site "Hastings"]
[Date "2024.01.03"]
[Round "7.1"]
[White "Zhang, Pengxiang"]
[Black "Gupta, Abhijeet"]
[Result "1/2-1/2"]
[ECO "C66"]
[WhiteElo "2558"]
[BlackElo "2596"]
[Annotator "TA"]
[PlyCount "107"]
[EventDate "2023.12.18"]
[EventType "swiss"]
[EventCountry "ENG"]
[SourceTitle "playchess.com"]
[Source "ChessBase"]
[SourceQuality "1"]
[TimeControl "40/6000+30:3000+30"]

{[%evp 9,107,37,27,35,28,29,32,22,32,19,19,27,25,14,21,18,23,27,14,22,37,15,16,-16,-18,-44,-41,-47,-45,-63,-46,-51,-24,-45,-55,-73,-32,-50,-45,-80,-67,-118,-150,-129,-140,-316,-311,-297,-310,-300,-310,-289,-287,-405,-266,-269,-247,-258,-207,-208,-38,-35,-39,-34,-32,-38,-2,-2,0,0,0,0,0,0,79,79,0,0,0,0,0,0,0,0,0,0,0,0,0,0,0,0,0,0,0,0,0,0,0,0]} 1. e4 {[%emt 0:00:16]} e5 {[%emt 0:00:14]} 2. Nf3 {[%emt 0:00:53]} Nc6 {[%emt 0:00:06]} 3. Bb5 {[%emt 0:01:38]} Nf6 {[%emt 0:00:09]} 4. d3 {[%emt 0:06:21]} d6 {[%emt 0:00:12]} 5. O-O {[%emt 0:02:21]} a6 {[%emt 0:00:39]} 6. Bxc6+ {[%emt 0:07:33]} bxc6 {[%emt 0:00:04]} 7. Re1 {[%emt 0:00:05]} c5 {[%emt 0:00:24]} 8. c3 {[%emt 0:03:03] White is slightly better.} Bg4 {[%emt 0:00:08]} 9. Nbd2 {[%emt 0:02:09][%cal Bb1d2,Bd2f1,Bf1g3][%mdl 32]} Be7 {[%emt 0:00:55]} 10. h3 {[%emt 0:01:04]} Bd7 {[%emt 0:03:17]} 11. Nf1 {[%emt 0:09:49]} O-O {[%emt 0:03:58]} 12. Ng3 {[%emt 0:00:42]} Re8 {[%emt 0:03:17]} 13. d4 {[%emt 0:10:19]} cxd4 {[%emt 0:04:58]} 14. cxd4 {[%emt 0:00:03]} exd4 {[%emt 0:00:15]} 15. Qxd4 {[%emt 0:06:16]} c5 {[%emt 0:04:43]} 16. Qc3 {[%emt 0:01:22]} d5 {[%emt 0:14:09]} 17. e5 {[%emt 0:12:48]} d4 {[%emt 0:00:31]} 18. Qc2 {[%emt 0:00:16]} Nd5 {[%emt 0:00:14]} 19. Bd2 {[%emt 0:00:05]} Qb6 {[%emt 0:05:08]} 20. Rac1 {[%emt 0:03:43]} Rac8 {[%emt 0:01:38]} 21. b3 {[%emt 0:01:03]} h6 {[%emt 0:03:51]} 22. Ne4 {[%emt 0:07:13]} Bf8 {[%emt 0:04:13]} 23. Qc4 {[%emt 0:06:10]} Be6 $36 {[%emt 0:02:16][%mdl 2048] Black fights for an advantage.} 24. Qc2 {[%emt 0:00:31]} Red8 {[%emt 0:01:37]} 25. Nh2 {[%emt 0:09:24]} (25. Qd3 $15) 25... Nb4 $17 {[%emt 0:21:57]} 26. Bxb4 {[%emt 0:00:30]} Qxb4 {[%emt 0:00:10]} (26... cxb4 27. Qd3 $15) 27. Ng4 $2 {[%emt 0:01:30]} (27. Nd2 $17) 27... d3 $19 {[%emt 0:04:28]} 28. Qd2 {[%emt 0:00:11]} c4 {[%emt 0:03:50]} 29. bxc4 {[%emt 0:02:10]} Rxc4 {[%emt 0:04:05]} (29... Bxc4 30. Ne3 $17) 30. Rxc4 {[%emt 0:04:51]} Qxc4 {[%emt 0:01:13]} (30... Bxc4 $2 31. Ra1 $19) 31. Qe3 {[%emt 0:01:56]} (31. Nd6 {was worth a try.} Bxd6 32. exd6) 31... Kh8 {[%emt 0:01:51]} (31... Qxa2 32. Nxh6+ Kh8 33. Ng4 $17) 32. Rd1 {[%emt 0:01:16]} Qxa2 {[%emt 0:01:48]} 33. Qb6 {[%emt 0:01:51]} Qd5 {[%emt 0:03:17] ...Qd4 is the strong threat.} 34. Nd6 {[%emt 0:01:20] [#]} Be7 {[%emt 0:00:05]} ({Better is} 34... Rd7 $1 $19 35. Qe3 (35. Qb8 $2 Kg8 $19) 35... h5) 35. Qxa6 $15 {[%emt 0:01:29]} d2 {[%emt 0:07:37][%cal Re7d6]} 36. Qe2 $1 {[%emt 0:00:05]} Bg5 {[%emt 0:00:51] Strongly threatening ...Kg8.} 37. h4 {[%emt 0:00:42]} Bf4 {[%emt 0:01:08][%cal Of7f6] This pair of bishops is nice.} 38. g3 $1 {[%emt 0:00:11]} Bxg4 {[%emt 0:09:14][%mdl 64] [#] Remove Defender} (38... Bxe5 {looks sharper.} 39. Nxf7+ Bxf7 40. Nxe5 Kg8) 39. Qxg4 {[%emt 0:00:08]} Bxe5 {[%emt 0:00:30]} 40. Rxd2 $1 {[%emt 0:00:37][%mdl 64] Deflection} Qxd2 {[%emt 0:00:48]} 41. Nxf7+ {[%emt 0:50:04]} Kh7 {[%emt 0:09:32]} (41... Kg8 $11 {keeps the balance.} 42. Nxd8 Bd4) 42. Nxd8 $16 {[%emt 0:00:00]} (42. Nxe5 $2 {perishes.} Qe1+ 43. Kg2 Qxe5 $19) 42... Bxg3 {[%emt 0:01:36][%mdl 4096] Endgame KQB-KQN} (42... Qxd8 $16 43. Qf5+ g6 44. Qxe5 h5) 43. Qf5+ {[%emt 0:00:00] The position is equal.} Kg8 {[%emt 0:00:07]} 44. Qf7+ {[%emt 0:00:00]} Kh7 {[%emt 0:00:03]} 45. Qf5+ {[%emt 0:00:00]} Kg8 {[%emt 0:00:06]} 46. Qe6+ {[%emt 0:00:00]} Kh7 {[%emt 0:00:04]} 47. Qe4+ {[%emt 0:00:00]} Kg8 {[%emt 0:00:02]} 48. Qe8+ {[%emt 0:00:00]} Kh7 {[%emt 0:00:03]} 49. fxg3 {[%emt 0:00:00]} Qd1+ {[%emt 0:00:08]} 50. Kg2 {[%emt 0:00:00] Hoping for Qe4+.} Qc2+ {[%emt 0:00:11]} 51. Kf3 {[%emt 0:00:00] Threatens to win with Qe4+.} Qd1+ {[%emt 0:00:50]} 52. Kf4 {[%emt 0:00:00] And now Qe4+ would win.} Qf1+ {[%emt 0:01:15]} 53. Kg4 {[%emt 0:00:00] Qe4+ would be deadly.} Qd1+ {[%emt 0:00:55]} 54. Kh3 {[%emt 0:00:28] And White is the lucky defender. An interesting game.   Weighted Error Value: White=0.11 (very precise) /Black=0.17 (very precise)} 1/2-1/2